fUST/lending_fUST_20250105
["ID","MTS","AMOUNT","RATE_DAILY","PERIOD"]
[347662769,1736037047049,-1543.09,0.00019178,2]
[347662770,1736037047058,-500.0,0.00019178,2]
[347662771,1736037047067,-1056.08,0.00019178,2]
[347662772,1736037047077,-500.0,0.00019178,2]
[347662773,1736037047086,-500.0,0.00019178,2]
[347662774,1736037047097,-151.0,0.00019178,2]
[347662775,1736037047106,-270.077318,0.00019178,2]
[347662776,1736037047115,-151.0,0.00019178,2]
[347662777,1736037047124,-151.0,0.00019178,2]
[347662778,1736037047134,-1375.29,0.00019178,2]
[347662779,1736037047143,-151.0,0.00019178,2]
[347662780,1736037047152,-151.0,0.00019178,2]
[347662781,1736037047162,-151.0,0.00019178,2]
[347662782,1736037047171,-500.0,0.00019178,2]
[347662783,1736037047182,-500.0,0.00019178,2]
[347662784,1736037047191,-500.0,0.00019178,2]
[347662785,1736037047200,-786.26,0.00019178,2]
[347662786,1736037047210,-500.0,0.00019178,2]
[347662787,1736037047220,-500.0,0.00019178,2]
[347662788,1736037047229,-500.0,0.00019178,2]
[347662789,1736037047238,-690.91,0.00019178,2]
[347662790,1736037047248,-151.0,0.00019178,2]
[347662791,1736037047257,-500.0,0.00019178,2]
[347662792,1736037047266,-500.0,0.00019178,2]
[347662793,1736037047276,-541.56,0.00019178,2]
[347662794,1736037047285,-1033.0,0.00019178,2]
[347662795,1736037047295,-500.0,0.00019178,2]
[347662796,1736037047304,-900.6,0.00019178,2]
[347662797,1736037047314,-500.0,0.00019178,2]
[347662798,1736037047323,-2739.65,0.00019178,2]
[347662799,1736037047332,-500.0,0.00019178,2]
[347662800,1736037047342,-1311.78,0.00019178,2]
[347662801,1736037047351,-1761.0,0.00019178,2]
[347662802,1736037047360,-718.01,0.00019178,2]
[347662803,1736037047370,-1292.91,0.00019178,2]
[347662804,1736037047380,-500.0,0.00019178,2]
[347662805,1736037047389,-574.65,0.00019178,2]
[347662806,1736037047399,-500.0,0.00019178,2]
[347662807,1736037047408,-500.0,0.00019178,2]
[347662808,1736037047417,-705.59,0.00019178,2]
[347662809,1736037047427,-500.0,0.00019178,2]
[347662810,1736037047437,-500.0,0.00019178,2]
[347662811,1736037047446,-508.24,0.00019178,2]
[347662812,1736037047455,-500.0,0.00019178,2]
[347662813,1736037047465,-1055.72,0.00019178,2]
[347662814,1736037047474,-500.0,0.00019178,2]
[347662815,1736037047483,-151.0,0.00019178,2]
[347662816,1736037047493,-151.0,0.00019178,2]
[347662817,1736037047502,-151.0,0.00019178,2]
[347662818,1736037047511,-151.0,0.00019178,2]
[347662819,1736037047521,-500.0,0.00019178,2]
[347662820,1736037047530,-151.0,0.00019178,2]
[347662821,1736037047539,-151.0,0.00019178,2]
[347662822,1736037047549,-500.0,0.00019178,2]
[347662823,1736037047559,-500.0,0.00019178,2]
[347662824,1736037047568,-1582.37,0.00019178,2]
[347662825,1736037047577,-864.03,0.00019178,2]
[347662826,1736037047587,-500.0,0.00019178,2]
[347662827,1736037047596,-1023.46,0.00019178,2]
[347662828,1736037047606,-500.0,0.00019178,2]
[347662829,1736037047615,-29579.39313236,0.00019178,2]
[347662834,1736037951623,260.616671,0.00013973,2]
[347662835,1736037992367,354.2,0.00025,120]
[347662836,1736038009124,-293.3660871,0.00018101,2]
[347662838,1736038151194,25738.20946086,0.00025,120]
[347662862,1736038232222,-300.0,0.00018101,2]
[347662863,1736038232232,-1566.5,0.00018102,2]
[347662864,1736038232244,-2804.21613527,0.00018102,2]
[347662865,1736038232255,-343.55762178,0.00018102,2]
[347662866,1736038232280,-1161.12978024,0.00018102,2]
[347662867,1736038232291,-558.21120081,0.00018102,2]
[347662868,1736038232303,-2967.9459218,0.00018102,2]
[347662869,1736038232314,-15498.4393401,0.00018102,2]
[347662870,1736038232324,-165.39632,0.00018124,2]
[347662871,1736038232333,-469.038,0.0001822,2]
[347662872,1736038232343,-394.0,0.00018747,2]
[347662873,1736038232358,-244.2410072,0.00018986,2]
[347662874,1736038232367,-226.7831285,0.00019,2]
[347662875,1736038232377,-169.52182272,0.00019078,2]
[347662876,1736038232387,-143.72927323,0.000191,8]
[347662901,1736038238072,-180.27072677,0.000191,8]
[347662903,1736038238082,-4000.0,0.000191,2]
[347662905,1736038238091,-153.0,0.000191,2]
[347662907,1736038238101,-153.0,0.000191,2]
[347662909,1736038238110,-153.0,0.000191,2]
[347662911,1736038238119,-153.4,0.000191,2]
[347662913,1736038238129,-169.52182272,0.00019169,2]
[347662915,1736038238139,-200.804,0.00019177,2]
[347662917,1736038238148,-334.92688395,0.00019177,2]
[347662919,1736038238160,-165.07311605,0.00019177,2]
[347662921,1736038238169,-168.99580772,0.00019177,2]
[347662924,1736038238181,-331.00419228,0.00019177,2]
[347662926,1736038238189,-74.33523584,0.00019177,2]
[347662928,1736038238204,-425.66476416,0.00019177,2]
[347662930,1736038238214,-500.0,0.00019177,2]
[347662932,1736038238224,-17.32760664,0.00019177,2]
[347663016,1736038240180,-482.67239336,0.00019177,2]
[347663017,1736038240190,-213.18663963,0.00019177,2]
[347663018,1736038240199,-181.02905218,0.00019177,2]
[347663019,1736038240236,-318.97094782,0.00019177,2]
[347663020,1736038240246,-500.0,0.00019177,2]
[347663021,1736038240255,-500.0,0.00019177,2]
[347663022,1736038240264,-501.32657431,0.00019177,2]
[347663023,1736038240274,-500.0,0.00019177,2]
[347663024,1736038240283,-500.0,0.00019177,2]
[347663025,1736038240292,-450.0,0.00019177,2]
[347663026,1736038240302,-500.0,0.00019177,2]
[347663027,1736038240311,-500.0,0.00019177,2]
[347663028,1736038240320,-500.0,0.00019177,2]
[347663029,1736038240329,-500.0,0.00019177,2]
[347663030,1736038240339,-500.0,0.00019177,2]
[347663031,1736038240348,-500.0,0.00019177,2]
[347663032,1736038240357,-500.0,0.00019177,2]
[347663033,1736038240366,-500.0,0.00019177,2]
[347663034,1736038240375,-500.0,0.00019177,2]
[347663035,1736038240385,-500.0,0.00019177,2]
[347663036,1736038240394,-500.0,0.00019177,2]
[347663037,1736038240404,-500.0,0.00019177,2]
[347663038,1736038240413,-500.0,0.00019177,2]
[347663039,1736038240422,-500.0,0.00019177,2]
[347663040,1736038240432,-500.0,0.00019177,2]
[347663041,1736038240441,-500.0,0.00019177,2]
[347663042,1736038240451,-500.0,0.00019177,2]
[347663043,1736038240460,-500.0,0.00019177,2]
[347663044,1736038240469,-497.4729376,0.00019177,2]
[347663045,1736038240479,-500.0,0.00019177,2]
[347663046,1736038240488,-500.0,0.00019177,2]
[347663047,1736038240497,-500.0,0.00019177,2]
[347663048,1736038240507,-500.0,0.00019177,2]
[347663049,1736038240516,-500.0,0.00019177,2]
[347663050,1736038240526,-500.0,0.00019177,2]
[347663051,1736038240535,-500.0,0.00019177,2]
[347663052,1736038240544,-500.0,0.00019177,2]
[347663053,1736038240553,-500.0,0.00019177,2]
[347663054,1736038240563,-500.0,0.00019177,2]
[347663055,1736038240573,-500.0,0.00019177,2]
[347663056,1736038240582,-500.0,0.00019177,2]
[347663057,1736038240591,-164.6689073,0.00019177,2]
[347663058,1736038240600,-500.0,0.00019177,2]
[347663059,1736038240610,-309.99308722,0.00019177,2]
[347663060,1736038240620,-185.35154545,0.00019177,2]
[347663061,1736038240630,-302.04085611,0.00019177,2]
[347663062,1736038240641,-4132.60004786,0.00019178,2]
[347663063,1736038240651,-41094.49949858,0.00019178,2]
[347663064,1736038240661,-500.0,0.00019178,2]
[347663065,1736038240671,-500.0,0.00019178,2]
[347663066,1736038240681,-500.0,0.00019178,2]
[347663067,1736038240690,-151.0,0.00019178,2]
[347663068,1736038240700,-151.0,0.00019178,2]
[347663069,1736038240710,-151.0,0.00019178,2]
[347663070,1736038240719,-151.0,0.00019178,2]
[347663071,1736038240729,-500.0,0.00019178,2]
[347663072,1736038240738,-151.0,0.00019178,2]
[347663073,1736038240747,-151.0,0.00019178,2]
[347663074,1736038240756,-199.965379,0.00019178,2]
[347663075,1736038240766,-199.965379,0.00019178,2]
[347663076,1736038240775,-199.965379,0.00019178,2]
[347663077,1736038240784,-199.965379,0.00019178,2]
[347663078,1736038240793,-500.0,0.00019178,2]
[347663079,1736038240803,-500.0,0.00019178,2]
[347663080,1736038240816,-502.90602066,0.00019178,2]
[347663081,1736038240825,-500.0,0.00019178,2]
[347663082,1736038240835,-519.49,0.00019178,2]
[347663083,1736038240845,-432.77451128,0.00019178,2]
[347663084,1736038240859,-67.22548872,0.00019178,2]
[347663085,1736038240869,-151.0,0.00019178,2]
[347663086,1736038240879,-151.0,0.00019178,2]
[347663087,1736038240889,-151.0,0.00019178,2]
[347663088,1736038240899,-500.0,0.00019178,2]
[347663089,1736038240908,-500.0,0.00019178,2]
[347663090,1736038240917,-151.0,0.00019178,2]
[347663091,1736038240927,-151.0,0.00019178,2]
[347663092,1736038240936,-151.0,0.00019178,2]
[347663093,1736038240945,-151.0,0.00019178,2]
[347663094,1736038240954,-151.0,0.00019178,2]
[347663095,1736038240963,-151.0,0.00019178,2]
[347663096,1736038240973,-502.19,0.00019178,2]
[347663097,1736038240983,-535.72,0.00019178,2]
[347663098,1736038240992,-151.0,0.00019178,2]
[347663099,1736038241001,-151.0,0.00019178,2]
[347663100,1736038241011,-900.35,0.00019178,2]
[347663101,1736038241020,-500.0,0.00019178,2]
[347663102,1736038241030,-500.0,0.00019178,2]
[347663103,1736038241040,-500.0,0.00019178,2]
[347663104,1736038241049,-151.0,0.00019178,2]
[347663105,1736038241059,-576.85,0.00019178,2]
[347663106,1736038241069,-151.0,0.00019178,2]
[347663107,1736038241079,-151.0,0.00019178,2]
[347663108,1736038241088,-500.0,0.00019178,2]
[347663109,1736038241271,-151.0,0.00019178,2]
[347663110,1736038241280,-151.0,0.00019178,2]
[347663111,1736038241290,-151.0,0.00019178,2]
[347663112,1736038241299,-151.0,0.00019178,2]
[347663113,1736038241309,-151.0,0.00019178,2]
[347663114,1736038241319,-151.0,0.00019178,2]
[347663115,1736038241328,-155.608015,0.00019178,2]
[347663116,1736038241337,-151.0,0.00019178,2]
[347663117,1736038241347,-155.608015,0.00019178,2]
[347663118,1736038241356,-151.0,0.00019178,2]
[347663119,1736038241365,-151.0,0.00019178,2]
[347663120,1736038241375,-155.608015,0.00019178,2]
[347663121,1736038241385,-151.0,0.00019178,2]
[347663122,1736038241394,-291.098984,0.00019178,2]
[347663123,1736038241404,-151.0,0.00019178,2]
[347663124,1736038241413,-155.608015,0.00019178,2]
[347663125,1736038241423,-155.608015,0.00019178,2]
[347663126,1736038241433,-155.608015,0.00019178,2]
[347663127,1736038241443,-731.14,0.00019178,2]
[347663128,1736038241452,-516.80068342,0.00019178,2]
[347663129,1736038241461,-151.0,0.00019178,2]
[347663130,1736038241472,-151.845537,0.00019178,2]
[347663131,1736038241481,-500.0,0.00019178,2]
[347663132,1736038241491,-500.0,0.00019178,2]
[347663133,1736038241500,-500.0,0.00019178,2]
[347663134,1736038241510,-500.0,0.00019178,2]
[347663135,1736038241519,-500.0,0.00019178,2]
[347663136,1736038241529,-1239.12,0.00019178,2]
[347663137,1736038241538,-500.0,0.00019178,2]
[347663138,1736038241547,-500.0,0.00019178,2]
[347663139,1736038241557,-500.0,0.00019178,2]
[347663140,1736038241567,-500.0,0.00019178,2]
[347663141,1736038241576,-500.0,0.00019178,2]
[347663142,1736038241585,-500.0,0.00019178,2]
[347663143,1736038241595,-216.08731582,0.00019178,2]
[347663144,1736038241604,-500.0,0.00019178,2]
[347663145,1736038241613,-595.59,0.00019178,2]
[347663146,1736038241623,-500.0,0.00019178,2]
[347663147,1736038241633,-500.0,0.00019178,2]
[347663148,1736038241642,-500.0,0.00019178,2]
[347663149,1736038241651,-560.15,0.00019178,2]
[347663150,1736038241660,-193.97059,0.00019178,2]
[347663151,1736038241670,-193.97059,0.00019178,2]
[347663152,1736038241679,-193.97059,0.00019178,2]
[347663153,1736038241689,-500.0,0.00019178,2]
[347663154,1736038241698,-500.0,0.00019178,2]
[347663155,1736038241708,-825.07,0.00019178,2]
[347663156,1736038241718,-193.97059,0.00019178,2]
[347663157,1736038241727,-193.97059,0.00019178,2]
[347663158,1736038241736,-193.97059,0.00019178,2]
[347663159,1736038241745,-1137.73,0.00019178,2]
[347663160,1736038241755,-361.413714,0.00019178,2]
[347663161,1736038241764,-361.413714,0.00019178,2]
[347663162,1736038241773,-500.0,0.00019178,2]
[347663163,1736038241782,-361.413714,0.00019178,2]
[347663164,1736038241791,-361.413714,0.00019178,2]
[347663165,1736038241801,-361.413714,0.00019178,2]
[347663166,1736038241812,-361.413714,0.00019178,2]
[347663167,1736038241821,-500.0,0.00019178,2]
[347663168,1736038241830,-697.31,0.00019178,2]
[347663169,1736038241840,-500.0,0.00019178,2]
[347663170,1736038241851,-1062.04,0.00019178,2]
[347663171,1736038241864,-611.29,0.00019178,2]
[347663172,1736038241874,-396.45840364,0.00019178,2]
[347663173,1736038241885,-412.22824479,0.00019178,2]
[347663174,1736038241894,-500.0,0.00019178,2]
[347663175,1736038241904,-649.93,0.00019178,2]
[347663176,1736038241913,-500.0,0.00019178,2]
[347663177,1736038241923,-500.0,0.00019178,2]
[347663178,1736038241932,-500.0,0.00019178,2]
[347663179,1736038241942,-552.1,0.00019178,2]
[347663180,1736038241951,-979.49,0.00019178,2]
[347663181,1736038241960,-782.11,0.00019178,2]
[347663182,1736038241969,-551.14,0.00019178,2]
[347663183,1736038241977,-650.07,0.00019178,2]
[347663184,1736038241987,-500.0,0.00019178,2]
[347663185,1736038241996,-4928.38,0.00019178,2]
[347663186,1736038242005,-500.0,0.00019178,2]
[347663187,1736038242014,-500.0,0.00019178,2]
[347663188,1736038242023,-500.0,0.00019178,2]
[347663189,1736038242033,-714.1,0.00019178,2]
[347663190,1736038242042,-500.0,0.00019178,2]
[347663191,1736038242051,-500.0,0.00019178,2]
[347663192,1736038242061,-670.07,0.00019178,2]
[347663193,1736038242070,-500.0,0.00019178,2]
[347663194,1736038242080,-674.3,0.00019178,2]
[347663195,1736038242090,-1031.96,0.00019178,2]
[347663196,1736038242099,-500.0,0.00019178,2]
[347663197,1736038242109,-500.0,0.00019178,2]
[347663198,1736038242118,-500.0,0.00019178,2]
[347663199,1736038242128,-801.062131,0.00019178,2]
[347663200,1736038242138,-801.062131,0.00019178,2]
[347663201,1736038242148,-801.062131,0.00019178,2]
[347663202,1736038242158,-623.30972656,0.00019178,2]
[347663203,1736038242167,-801.062131,0.00019178,2]
[347663204,1736038242177,-801.062131,0.00019178,2]
[347663205,1736038242186,-801.062131,0.00019178,2]
[347663206,1736038242195,-500.0,0.00019178,2]
[347663207,1736038242205,-500.0,0.00019178,2]
[347663208,1736038242214,-500.0,0.00019178,2]
[347663209,1736038242223,-500.0,0.00019178,2]
[347663210,1736038242233,-560.99,0.00019178,2]
[347663211,1736038242243,-500.0,0.00019178,2]
[347663212,1736038242253,-263.81286652,0.00019178,2]
[347663213,1736038242262,-983.56,0.00019178,2]
[347663214,1736038242272,-500.0,0.00019178,2]
[347663215,1736038242281,-500.0,0.00019178,2]
[347663216,1736038242291,-519.0,0.00019178,2]
[347663217,1736038242300,-500.0,0.00019178,2]
[347663218,1736038242309,-326.939866,0.00019178,2]
[347663219,1736038242319,-326.939866,0.00019178,2]
[347663220,1736038242328,-326.939866,0.00019178,2]
[347663221,1736038242338,-326.939866,0.00019178,2]
[347663222,1736038242348,-326.939866,0.00019178,2]
[347663223,1736038242357,-326.939866,0.00019178,2]
[347663224,1736038242367,-500.0,0.00019178,2]
[347663225,1736038242376,-500.0,0.00019178,2]
[347663226,1736038242387,-500.0,0.00019178,2]
[347663227,1736038242396,-151.0,0.00019178,2]
[347663228,1736038242406,-151.0,0.00019178,2]
[347663229,1736038242415,-151.0,0.00019178,2]
[347663230,1736038242425,-151.0,0.00019178,2]
[347663231,1736038242435,-3436.06,0.00019178,2]
[347663232,1736038242444,-569.73027689,0.00019178,2]
[347663233,1736038242453,-500.0,0.00019178,2]
[347663234,1736038242463,-500.0,0.00019178,2]
[347663235,1736038242472,-500.0,0.00019178,2]
[347663236,1736038242482,-151.0,0.00019178,2]
[347663237,1736038242492,-151.0,0.00019178,2]
[347663238,1736038242506,-151.0,0.00019178,2]
[347663239,1736038242516,-151.0,0.00019178,2]
[347663240,1736038242525,-393.80547547,0.00019178,2]
[347663241,1736038242542,-106.19452453,0.00019178,2]
[347663242,1736038242552,-151.0,0.00019178,2]
[347663243,1736038242562,-151.0,0.00019178,2]
[347663244,1736038242571,-151.0,0.00019178,2]
[347663245,1736038242581,-151.0,0.00019178,2]
[347663246,1736038242591,-500.0,0.00019178,2]
[347663247,1736038242600,-192.479383,0.00019178,2]
[347663248,1736038242610,-1221.93,0.00019178,2]
[347663249,1736038242620,-150.08,0.00019178,2]
[347663250,1736038242632,-150.08,0.00019178,2]
[347663251,1736038242642,-150.45907218,0.00019178,2]
[347663252,1736038242652,-676.71,0.00019178,2]
[347663253,1736038242661,-500.0,0.00019178,2]
[347663254,1736038242670,-500.0,0.00019178,2]
[347663255,1736038242680,-500.0,0.00019178,2]
[347663256,1736038242690,-150.08,0.00019178,2]
[347663257,1736038242700,-150.08,0.00019178,2]
[347663258,1736038242709,-150.08,0.00019178,2]
[347663259,1736038242719,-189.484793,0.00019178,2]
[347663260,1736038242728,-189.484793,0.00019178,2]
[347663261,1736038242737,-189.484793,0.00019178,2]
[347663262,1736038242746,-189.484793,0.00019178,2]
[347663263,1736038242756,-1012.07,0.00019178,2]
[347663265,1736038242766,-500.0,0.00019178,2]
[347663267,1736038242776,-189.484793,0.00019178,2]
[347663268,1736038242785,-189.484793,0.00019178,2]
[347663270,1736038242795,-189.484793,0.00019178,2]
[347663272,1736038242806,-189.484793,0.00019178,2]
[347663274,1736038242820,-828.03,0.00019178,2]
[347663276,1736038242831,-1322.03,0.00019178,2]
[347663277,1736038242840,-272.80535,0.00019178,2]
[347663279,1736038242850,-200.0,0.00019178,2]
[347663281,1736038242861,-500.0,0.00019178,2]
[347663282,1736038242870,-500.0,0.00019178,2]
[347663283,1736038242881,-753.49,0.00019178,2]
[347663284,1736038242892,-500.0,0.00019178,2]
[347663285,1736038242901,-279.37165374,0.00019178,2]
[347663286,1736038242911,-500.0,0.00019178,2]
[347663288,1736038242920,-989.95,0.00019178,2]
[347663289,1736038242929,-662.13,0.00019178,2]
[347663291,1736038242939,-863.08,0.00019178,2]
[347663292,1736038242948,-256.02732035,0.00019178,2]
[347663293,1736038242957,-881.39,0.00019178,2]
[347663294,1736038242967,-500.0,0.00019178,2]
[347663295,1736038242977,-500.0,0.00019178,2]
[347663296,1736038242987,-500.0,0.00019178,2]
[347663297,1736038242996,-2625.49,0.00019178,2]
[347663298,1736038243006,-688.1,0.00019178,2]
[347663299,1736038243015,-500.0,0.00019178,2]
[347663300,1736038243025,-500.0,0.00019178,2]
[347663302,1736038243034,-1069.711861,0.00019178,2]
[347663304,1736038243044,-1069.711861,0.00019178,2]
[347663306,1736038243052,-1069.711861,0.00019178,2]
[347663308,1736038243061,-1069.711861,0.00019178,2]
[347663309,1736038243071,-1069.711861,0.00019178,2]
[347663310,1736038243080,-1069.711861,0.00019178,2]
[347663311,1736038243090,-1687.63,0.00019178,2]
[347663312,1736038243099,-8047.6,0.00019178,2]
[347663313,1736038243109,-500.0,0.00019178,2]
[347663314,1736038243118,-550.71,0.00019178,2]
[347663315,1736038243128,-1239.04,0.00019178,2]
[347663316,1736038243137,-500.0,0.00019178,2]
[347663317,1736038243147,-151.0,0.00019178,2]
[347663318,1736038243156,-151.0,0.00019178,2]
[347663319,1736038243166,-151.0,0.00019178,2]
[347663320,1736038243175,-500.0,0.00019178,2]
[347663321,1736038243184,-151.0,0.00019178,2]
[347663323,1736038243194,-1011.73,0.00019178,2]
[347663325,1736038243206,-500.0,0.00019178,2]
[347663326,1736038243218,-500.0,0.00019178,2]
[347663327,1736038243228,-500.0,0.00019178,2]
[347663328,1736038243237,-500.0,0.00019178,2]
[347663329,1736038243247,-151.0,0.00019178,2]
[347663330,1736038243256,-151.0,0.00019178,2]
[347663331,1736038243266,-151.0,0.00019178,2]
[347663332,1736038243276,-151.0,0.00019178,2]
[347663333,1736038243285,-500.0,0.00019178,2]
[347663334,1736038243294,-676.19,0.00019178,2]
[347663335,1736038243304,-697.7883,0.00019178,2]
[347663336,1736038243313,-697.7883,0.00019178,2]
[347663337,1736038243322,-500.0,0.00019178,2]
[347663338,1736038243331,-697.7883,0.00019178,2]
[347663339,1736038243340,-697.7883,0.00019178,2]
[347663340,1736038243350,-1516.43,0.00019178,2]
[347663341,1736038243360,-697.7883,0.00019178,2]
[347663342,1736038243371,-697.7883,0.00019178,2]
[347663343,1736038243380,-697.7883,0.00019178,2]
[347663344,1736038243389,-697.7883,0.00019178,2]
[347663345,1736038243399,-697.7883,0.00019178,2]
[347663346,1736038243408,-697.7883,0.00019178,2]
[347663347,1736038243417,-39779.89,0.00019178,2]
[347663348,1736038243427,-500.0,0.00019178,2]
[347663349,1736038243436,-980.81,0.00019178,2]
[347663350,1736038243446,-500.0,0.00019178,2]
[347663351,1736038243456,-500.0,0.00019178,2]
[347663352,1736038243465,-500.0,0.00019178,2]
[347663353,1736038243475,-500.0,0.00019178,2]
[347663354,1736038243484,-3087.97,0.00019178,2]
[347663355,1736038243494,-945.21,0.00019178,2]
[347663356,1736038243503,-1275.43,0.00019178,2]
[347663357,1736038243513,-500.0,0.00019178,2]
[347663358,1736038243522,-150.08,0.00019178,2]
[347663359,1736038243532,-150.08,0.00019178,2]
[347663360,1736038243542,-150.08,0.00019178,2]
[347663361,1736038243552,-150.08,0.00019178,2]
[347663362,1736038243562,-150.30575654,0.00019178,2]
[347663363,1736038243571,-163.9012923,0.00019178,2]
[347663364,1736038243580,-3212.51,0.00019178,2]
[347663365,1736038243590,-500.0,0.00019178,2]
[347663366,1736038243599,-151.0,0.00019178,2]
[347663367,1736038243608,-151.0,0.00019178,2]
[347663368,1736038243618,-151.0,0.00019178,2]
[347663369,1736038243628,-151.0,0.00019178,2]
[347663370,1736038243638,-7691.15,0.00019178,2]
[347663371,1736038243647,-151.0,0.00019178,2]
[347663372,1736038243657,-500.0,0.00019178,2]
[347663373,1736038243667,-500.0,0.00019178,2]
[347663374,1736038243677,-500.0,0.00019178,2]
[347663375,1736038243686,-500.0,0.00019178,2]
[347663376,1736038243696,-352.24712626,0.00019178,2]
[347663377,1736038243705,-151.0,0.00019178,2]
[347663378,1736038243714,-500.0,0.00019178,2]
[347663379,1736038243724,-151.0,0.00019178,2]
[347663380,1736038243733,-500.0,0.00019178,2]
[347663381,1736038243743,-151.0,0.00019178,2]
[347663382,1736038243752,-151.0,0.00019178,2]
[347663383,1736038243762,-500.0,0.00019178,2]
[347663384,1736038243771,-151.0,0.00019178,2]
[347663385,1736038243780,-151.0,0.00019178,2]
[347663386,1736038243790,-1667.29,0.00019178,2]
[347663387,1736038243799,-1649.59,0.00019178,2]
[347663388,1736038243809,-151.0,0.00019178,2]
[347663389,1736038243821,-594.35,0.00019178,2]
[347663390,1736038243831,-500.0,0.00019178,2]
[347663391,1736038243840,-500.0,0.00019178,2]
[347663392,1736038243849,-1417.4,0.00019178,2]
[347663393,1736038243858,-2166.92,0.00019178,2]
[347663394,1736038243867,-500.0,0.00019178,2]
[347663395,1736038243877,-500.0,0.00019178,2]
[347663396,1736038243887,-500.0,0.00019178,2]
[347663397,1736038243896,-500.0,0.00019178,2]
[347663398,1736038243906,-1134.2,0.00019178,2]
[347663399,1736038243915,-500.0,0.00019178,2]
[347663400,1736038243924,-2204.67,0.00019178,2]
[347663401,1736038243933,-1257.12,0.00019178,2]
[347663402,1736038243942,-500.0,0.00019178,2]
[347663403,1736038243951,-502.17,0.00019178,2]
[347663404,1736038243961,-155.248548,0.00019178,2]
[347663405,1736038243970,-500.0,0.00019178,2]
[347663406,1736038243979,-155.248548,0.00019178,2]
[347663407,1736038243988,-155.248548,0.00019178,2]
[347663408,1736038243998,-1902.49,0.00019178,2]
[347663409,1736038244007,-155.248548,0.00019178,2]
[347663410,1736038244016,-155.248548,0.00019178,2]
[347663411,1736038244026,-155.248548,0.00019178,2]
[347663412,1736038244035,-604.08,0.00019178,2]
[347663413,1736038244045,-500.0,0.00019178,2]
[347663414,1736038244054,-500.0,0.00019178,2]
[347663415,1736038244064,-500.0,0.00019178,2]
[347663416,1736038244073,-1478.79,0.00019178,2]
[347663417,1736038244082,-500.0,0.00019178,2]
[347663418,1736038244091,-500.0,0.00019178,2]
[347663419,1736038244101,-500.0,0.00019178,2]
[347663420,1736038244110,-500.0,0.00019178,2]
[347663421,1736038244119,-500.0,0.00019178,2]
[347663422,1736038244128,-500.0,0.00019178,2]
[347663423,1736038244139,-500.0,0.00019178,2]
[347663424,1736038244148,-500.0,0.00019178,2]
[347663425,1736038244158,-500.0,0.00019178,2]
[347663426,1736038244168,-500.0,0.00019178,2]
[347663427,1736038244178,-154.830075,0.00019178,2]
[347663428,1736038244187,-500.0,0.00019178,2]
[347663429,1736038244196,-500.0,0.00019178,2]
[347663430,1736038244206,-500.0,0.00019178,2]
[347663431,1736038244215,-151.0,0.00019178,2]
[347663432,1736038244225,-151.0,0.00019178,2]
[347663433,1736038244235,-151.0,0.00019178,2]
[347663434,1736038244246,-151.0,0.00019178,2]
[347663435,1736038244255,-3036.46,0.00019178,2]